[Event "December 19 Early 2023"]
[Site "https://www.chess.com"]
[Date "2023.12.19"]
[Round "1"]
[White "Kraus, Tomas"]
[Black "Ovetchkin, Roman"]
[Result "0-1"]
[Board "156"]
[TimeControl "180+1"]
[WhiteFideId "331708"]
[BlackFideId "4119991"]
[WhiteElo "2371"]
[BlackElo "2381"]
[WhiteTeam "CZE"]
[BlackTeam "RUS"]
[WhiteClock "0:00:05"]
[BlackClock "0:00:29"]

1. e4 {[%clk 0:02:59]}  c6 {[%clk 0:03:00]} 2. d4 {[%clk 0:02:58]}  d5 {[%clk 0:03:01]} 3. f3 {[%clk 0:02:57]}  Qb6 {[%clk 0:02:55]} 4. a4 {[%clk 0:02:55]}  a6 {[%clk 0:02:48]} 5. a5 {[%clk 0:02:46]}  Qc7 {[%clk 0:02:47]} 6. Nc3 {[%clk 0:02:42]}  e6 {[%clk 0:02:46]} 7. Bd3 {[%clk 0:02:34]}  Bb4 {[%clk 0:02:39]} 8. Ne2 {[%clk 0:02:27]}  Bxa5 {[%clk 0:02:37]} 9. O-O {[%clk 0:02:17]}  Bb6 {[%clk 0:02:36]} 10. Bf4 {[%clk 0:02:13]}  Qd8 {[%clk 0:02:34]} 11. Na4 {[%clk 0:01:54]}  Bc7 {[%clk 0:02:32]} 12. e5 {[%clk 0:01:46]}  Ne7 {[%clk 0:02:29]} 13. Qd2 {[%clk 0:01:35]}  Nd7 {[%clk 0:02:26]} 14. Bg3 {[%clk 0:01:24]}  b6 {[%clk 0:02:12]} 15. f4 {[%clk 0:01:19]}  Nf5 {[%clk 0:02:00]} 16. Bf2 {[%clk 0:01:15]}  h5 {[%clk 0:01:59]} 17. b3 {[%clk 0:01:05]}  a5 {[%clk 0:01:31]} 18. c4 {[%clk 0:01:00]}  Ba6 {[%clk 0:01:28]} 19. Rfc1 {[%clk 0:00:52]}  h4 {[%clk 0:01:18]} 20. b4 {[%clk 0:00:30]}  Bxc4 {[%clk 0:01:15]} 21. Bxc4 {[%clk 0:00:29]}  dxc4 {[%clk 0:01:15]} 22. Rxc4 {[%clk 0:00:29]}  b5 {[%clk 0:01:13]} 23. Rxc6 {[%clk 0:00:24]}  bxa4 {[%clk 0:01:13]} 24. bxa5 {[%clk 0:00:21]}  Bxa5 {[%clk 0:01:10]} 25. Qd3 {[%clk 0:00:19]}  Nb6 {[%clk 0:01:07]} 26. g4 {[%clk 0:00:13]}  hxg3 {[%clk 0:01:07]} 27. Nxg3 {[%clk 0:00:14]}  Nxg3 {[%clk 0:00:55]} 28. Bxg3 {[%clk 0:00:14]}  Qd7 {[%clk 0:00:41]} 29. Rac1 {[%clk 0:00:12]}  Nd5 {[%clk 0:00:40]} 30. Qb5 {[%clk 0:00:11]}  O-O {[%clk 0:00:37]} 31. Qc5 {[%clk 0:00:08]}  Bb4 {[%clk 0:00:33]} 32. Qc4 {[%clk 0:00:07]}  a3 {[%clk 0:00:31]} 33. Rc7 {[%clk 0:00:06]}  Qxc7 {[%clk 0:00:29]} 34. Qxc7 {[%clk 0:00:05]}  Nxc7 {[%clk 0:00:29]} 0-1

[Event "December 19 Early 2023"]
[Site "https://www.chess.com"]
[Date "2023.12.19"]
[Round "1"]
[White "Jakubowski, Krzysztof"]
[Black "Napoli, Nicolo"]
[Result "0-1"]
[Board "159"]
[TimeControl "180+1"]
[WhiteFideId "1112848"]
[BlackFideId "813702"]
[WhiteElo "2369"]
[BlackElo "2306"]
[WhiteTeam "POL"]
[BlackTeam "ITA"]
[WhiteClock "0:00:40"]
[BlackClock "0:00:18"]

1. e4 {[%clk 0:03:00]}  c6 {[%clk 0:02:58]} 2. d4 {[%clk 0:02:57]}  d5 {[%clk 0:02:59]} 3. exd5 {[%clk 0:02:57]}  cxd5 {[%clk 0:02:59]} 4. Bd3 {[%clk 0:02:56]}  Nf6 {[%clk 0:02:59]} 5. c3 {[%clk 0:02:54]}  Bg4 {[%clk 0:02:58]} 6. Qb3 {[%clk 0:02:51]}  Qc7 {[%clk 0:02:58]} 7. Na3 {[%clk 0:02:41]}  a6 {[%clk 0:02:49]} 8. Nc2 {[%clk 0:02:40]}  Nc6 {[%clk 0:02:42]} 9. Ne3 {[%clk 0:02:36]}  Na5 {[%clk 0:02:26]} 10. Qc2 {[%clk 0:02:05]}  e6 {[%clk 0:02:23]} 11. Nxg4 {[%clk 0:02:03]}  Nxg4 {[%clk 0:02:24]} 12. Qe2 {[%clk 0:01:59]}  Nf6 {[%clk 0:02:21]} 13. Nf3 {[%clk 0:01:59]}  Bd6 {[%clk 0:02:15]} 14. O-O {[%clk 0:01:54]}  Nc4 {[%clk 0:02:11]} 15. Bg5 {[%clk 0:01:49]}  b5 {[%clk 0:02:06]} 16. a4 {[%clk 0:01:45]}  O-O {[%clk 0:01:41]} 17. g3 {[%clk 0:01:26]}  Be7 {[%clk 0:01:35]} 18. Ne5 {[%clk 0:01:20]}  h6 {[%clk 0:01:17]} 19. Bxf6 {[%clk 0:01:17]}  Bxf6 {[%clk 0:01:18]} 20. Ng4 {[%clk 0:01:17]}  Qe7 {[%clk 0:01:14]} 21. Rfe1 {[%clk 0:01:14]}  Rab8 {[%clk 0:01:03]} 22. axb5 {[%clk 0:01:12]}  axb5 {[%clk 0:01:00]} 23. b3 {[%clk 0:01:00]}  Nd6 {[%clk 0:00:57]} 24. Ra6 {[%clk 0:00:57]}  Ne8 {[%clk 0:00:45]} 25. Bxb5 {[%clk 0:00:53]}  Nc7 {[%clk 0:00:31]} 26. Ra7 {[%clk 0:00:50]}  Rxb5 {[%clk 0:00:20]} 27. Rxc7 {[%clk 0:00:50]}  Qxc7 {[%clk 0:00:20]} 28. Nxf6+ {[%clk 0:00:49]}  gxf6 {[%clk 0:00:20]} 29. Qxb5 {[%clk 0:00:49]}  Qxc3 {[%clk 0:00:20]} 30. Rd1 {[%clk 0:00:48]}  Rc8 {[%clk 0:00:18]} 31. Kg2 {[%clk 0:00:46]}  Qc2 {[%clk 0:00:18]} 32. Rd3 {[%clk 0:00:46]}  Qe2 {[%clk 0:00:17]} 33. Rf3 {[%clk 0:00:40]}  Qxb5 {[%clk 0:00:18]} 0-1

[Event "December 19 Early 2023"]
[Site "https://www.chess.com"]
[Date "2023.12.19"]
[Round "1"]
[White "Mesa Cruz, Juan Carlos"]
[Black "Antunez Soler, Luis"]
[Result "1-0"]
[Board "162"]
[TimeControl "180+1"]
[WhiteFideId "6423400"]
[BlackFideId "3513335"]
[WhiteElo "2142"]
[BlackElo "2154"]
[WhiteTeam "DOM"]
[BlackTeam "CUB"]
[WhiteClock "0:00:45"]
[BlackClock "0:01:17"]

1. e4 {[%clk 0:02:48]}  e6 {[%clk 0:03:00]} 2. Qe2 {[%clk 0:02:47]}  c5 {[%clk 0:02:59]} 3. Nf3 {[%clk 0:02:47]}  Nc6 {[%clk 0:03:00]} 4. g3 {[%clk 0:02:47]}  d6 {[%clk 0:02:59]} 5. Bg2 {[%clk 0:02:47]}  e5 {[%clk 0:03:00]} 6. a3 {[%clk 0:02:45]}  Bg4 {[%clk 0:03:00]} 7. c3 {[%clk 0:02:39]}  Nf6 {[%clk 0:02:59]} 8. O-O {[%clk 0:02:39]}  Qd7 {[%clk 0:02:59]} 9. d3 {[%clk 0:02:39]}  Be7 {[%clk 0:02:59]} 10. b4 {[%clk 0:02:38]}  h5 {[%clk 0:02:54]} 11. Nbd2 {[%clk 0:02:27]}  h4 {[%clk 0:02:47]} 12. Nc4 {[%clk 0:02:26]}  hxg3 {[%clk 0:02:38]} 13. fxg3 {[%clk 0:02:26]}  Bh3 {[%clk 0:02:33]} 14. bxc5 {[%clk 0:02:22]}  Bxg2 {[%clk 0:02:29]} 15. Qxg2 {[%clk 0:02:20]}  dxc5 {[%clk 0:02:29]} 16. Nfxe5 {[%clk 0:02:19]}  Nxe5 {[%clk 0:02:29]} 17. Nxe5 {[%clk 0:02:19]}  Qe6 {[%clk 0:02:30]} 18. d4 {[%clk 0:02:19]}  cxd4 {[%clk 0:02:26]} 19. cxd4 {[%clk 0:02:19]}  O-O-O {[%clk 0:02:23]} 20. Be3 {[%clk 0:02:01]}  Kb8 {[%clk 0:02:10]} 21. d5 {[%clk 0:02:00]}  Qa6 {[%clk 0:02:03]} 22. Nxf7 {[%clk 0:01:50]}  Ng4 {[%clk 0:02:04]} 23. Bd4 {[%clk 0:01:15]}  Rxh2 {[%clk 0:02:00]} 24. Qf3 {[%clk 0:01:14]}  Qc4 {[%clk 0:01:34]} 25. Qxg4 {[%clk 0:00:50]}  Qxd4+ {[%clk 0:01:34]} 26. Kxh2 {[%clk 0:00:50]}  Qd2+ {[%clk 0:01:17]} 27. Kh3 {[%clk 0:00:45]} 1-0

[Event "December 19 Early 2023"]
[Site "https://www.chess.com"]
[Date "2023.12.19"]
[Round "1"]
[White "Buscar, Michael"]
[Black "Domingo Nunez, Alejandro"]
[Result "0-1"]
[Board "164"]
[TimeControl "180+1"]
[WhiteFideId "2603616"]
[BlackFideId "22245561"]
[WhiteElo "2010"]
[BlackElo "2252"]
[WhiteTeam "CAN"]
[BlackTeam "ESP"]
[WhiteClock "0:02:35"]
[BlackClock "0:02:37"]

1. d4 {[%clk 0:03:00]}  Nf6 {[%clk 0:02:59]} 2. c4 {[%clk 0:03:00]}  g6 {[%clk 0:03:00]} 3. Nc3 {[%clk 0:03:00]}  Bg7 {[%clk 0:03:00]} 4. e4 {[%clk 0:03:01]}  d6 {[%clk 0:03:01]} 5. Nf3 {[%clk 0:03:01]}  O-O {[%clk 0:03:01]} 6. Be2 {[%clk 0:03:00]}  e5 {[%clk 0:03:01]} 7. h3 {[%clk 0:02:58]}  exd4 {[%clk 0:02:52]} 8. Nxd4 {[%clk 0:02:59]}  Re8 {[%clk 0:02:52]} 9. Bf3 {[%clk 0:02:45]}  Nxe4 {[%clk 0:02:38]} 10. Nxe4 {[%clk 0:02:45]}  f5 {[%clk 0:02:38]} 11. Bg5 {[%clk 0:02:44]}  Qxg5 {[%clk 0:02:37]} 12. O-O {[%clk 0:02:35]}  fxe4 {[%clk 0:02:37]} 0-1

[Event "December 19 Early 2023"]
[Site "https://www.chess.com"]
[Date "2023.12.19"]
[Round "1"]
[White "Tarasova, Viktoriya"]
[Black "Boyer, Mahel"]
[Result "0-1"]
[Board "166"]
[TimeControl "180+1"]
[WhiteFideId "4175840"]
[BlackFideId "45102422"]
[WhiteElo "2182"]
[BlackElo "2449"]
[WhiteTeam "RUS"]
[BlackTeam "FRA"]
[WhiteClock "0:00:07"]
[BlackClock "0:00:02"]

1. d4 {[%clk 0:03:00]}  d6 {[%clk 0:02:15]} 2. c4 {[%clk 0:02:59]}  e5 {[%clk 0:02:09]} 3. Nc3 {[%clk 0:02:58]}  exd4 {[%clk 0:02:08]} 4. Qxd4 {[%clk 0:02:58]}  Nc6 {[%clk 0:02:09]} 5. Qd2 {[%clk 0:02:58]}  g6 {[%clk 0:02:06]} 6. b3 {[%clk 0:02:58]}  Bh6 {[%clk 0:02:04]} 7. e3 {[%clk 0:02:48]}  Nf6 {[%clk 0:02:00]} 8. Bd3 {[%clk 0:02:47]}  O-O {[%clk 0:02:00]} 9. Bb2 {[%clk 0:02:47]}  Ne5 {[%clk 0:01:54]} 10. Nge2 {[%clk 0:02:36]}  a5 {[%clk 0:01:33]} 11. O-O {[%clk 0:02:30]}  Re8 {[%clk 0:01:25]} 12. Bc2 {[%clk 0:02:27]}  Nfg4 {[%clk 0:00:31]} 13. Nf4 {[%clk 0:02:09]}  Qh4 {[%clk 0:00:28]} 14. h3 {[%clk 0:02:09]}  Nf3+ {[%clk 0:00:07]} 15. gxf3 {[%clk 0:01:39]}  Ne5 {[%clk 0:00:06]} 16. Qe2 {[%clk 0:00:42]}  Bxh3 {[%clk 0:00:06]} 17. Nxh3 {[%clk 0:00:24]}  Qxh3 {[%clk 0:00:07]} 18. Be4 {[%clk 0:00:24]}  d5 {[%clk 0:00:02]} 19. Nxd5 {[%clk 0:00:20]}  Ng4 {[%clk 0:00:01]} 20. Nf6+ {[%clk 0:00:18]}  Nxf6 {[%clk 0:00:01]} 21. Bxf6 {[%clk 0:00:19]}  Re6 {[%clk 0:00:01]} 22. Bb2 {[%clk 0:00:14]}  Rae8 {[%clk 0:00:02]} 23. Bxb7 {[%clk 0:00:07]}  Re5 {[%clk 0:00:01]} 24. f4 {[%clk 0:00:07]}  Bxf4 {[%clk 0:00:01]} 25. Qf3 {[%clk 0:00:07]}  Rg5+ {[%clk 0:00:02]} 26. Qg2 {[%clk 0:00:07]}  Qh2# {[%clk 0:00:02]} 0-1

[Event "December 19 Early 2023"]
[Site "https://www.chess.com"]
[Date "2023.12.19"]
[Round "1"]
[White "Omelja, Artem"]
[Black "Eggleston, Thomas A"]
[Result "1-0"]
[Board "167"]
[TimeControl "180+1"]
[WhiteFideId "14119846"]
[BlackFideId "412139"]
[WhiteElo "2404"]
[BlackElo "2169"]
[WhiteTeam "UKR"]
[BlackTeam "ENG"]
[WhiteClock "0:00:02"]
[BlackClock "0:00:00"]

1. d4 {[%clk 0:02:57]}  e6 {[%clk 0:02:59]} 2. c4 {[%clk 0:02:55]}  f5 {[%clk 0:03:00]} 3. Bf4 {[%clk 0:02:54]}  Nf6 {[%clk 0:02:58]} 4. e3 {[%clk 0:02:54]}  Bb4+ {[%clk 0:02:58]} 5. Nc3 {[%clk 0:02:54]}  c5 {[%clk 0:02:50]} 6. Bd3 {[%clk 0:02:30]}  O-O {[%clk 0:02:31]} 7. Nf3 {[%clk 0:02:25]}  Ne4 {[%clk 0:02:28]} 8. Qc2 {[%clk 0:02:08]}  d5 {[%clk 0:02:09]} 9. O-O {[%clk 0:02:03]}  cxd4 {[%clk 0:02:01]} 10. Nxd4 {[%clk 0:01:41]}  Bxc3 {[%clk 0:01:44]} 11. bxc3 {[%clk 0:01:42]}  Nc6 {[%clk 0:01:37]} 12. Rfd1 {[%clk 0:01:37]}  Qf6 {[%clk 0:01:24]} 13. cxd5 {[%clk 0:01:33]}  exd5 {[%clk 0:01:18]} 14. Qb3 {[%clk 0:01:32]}  Qf7 {[%clk 0:01:09]} 15. Qa3 {[%clk 0:00:37]}  Be6 {[%clk 0:01:00]} 16. Rab1 {[%clk 0:00:36]}  Rac8 {[%clk 0:00:53]} 17. Nb5 {[%clk 0:00:25]}  b6 {[%clk 0:00:35]} 18. Bxe4 {[%clk 0:00:23]}  fxe4 {[%clk 0:00:35]} 19. Nd6 {[%clk 0:00:21]}  Qe7 {[%clk 0:00:35]} 20. Qa4 {[%clk 0:00:18]}  Rc7 {[%clk 0:00:27]} 21. Nb5 {[%clk 0:00:14]}  Rd7 {[%clk 0:00:23]} 22. Bg3 {[%clk 0:00:13]}  Bg4 {[%clk 0:00:19]} 23. Rd2 {[%clk 0:00:12]}  Ne5 {[%clk 0:00:05]} 24. Qb3 {[%clk 0:00:08]}  Nc4 {[%clk 0:00:05]} 25. Rd4 {[%clk 0:00:03]}  a6 {[%clk 0:00:04]} 26. Rxc4 {[%clk 0:00:02]}  dxc4 {[%clk 0:00:03]} 27. Qxc4+ {[%clk 0:00:03]}  Be6 {[%clk 0:00:02]} 28. Qxe4 {[%clk 0:00:02]}  axb5 {[%clk 0:00:02]} 29. h3 {[%clk 0:00:01]}  Bf5 {[%clk 0:00:02]} 30. Qxe7 {[%clk 0:00:01]}  Rxe7 {[%clk 0:00:02]} 31. Rxb5 {[%clk 0:00:01]}  Rb7 {[%clk 0:00:01]} 32. Rb4 {[%clk 0:00:02]}  g6 {[%clk 0:00:00]} 33. a4 {[%clk 0:00:02]} 1-0

[Event "December 19 Early 2023"]
[Site "https://www.chess.com"]
[Date "2023.12.19"]
[Round "1"]
[White "Ambartsumova, Karina"]
[Black "Umarov, Sabir"]
[Result "1-0"]
[Board "169"]
[TimeControl "180+1"]
[WhiteFideId "4166299"]
[BlackFideId "14200538"]
[WhiteElo "2240"]
[BlackElo "2307"]
[WhiteTeam "RUS"]
[BlackTeam "UZB"]
[WhiteClock "0:01:03"]
[BlackClock "0:00:00"]

1. d4 {[%clk 0:03:00]}  c6 {[%clk 0:02:55]} 2. c4 {[%clk 0:02:59]}  g6 {[%clk 0:02:50]} 3. e4 {[%clk 0:02:57]}  Bg7 {[%clk 0:02:48]} 4. Nc3 {[%clk 0:02:56]}  d6 {[%clk 0:02:44]} 5. Nf3 {[%clk 0:02:56]}  Bg4 {[%clk 0:02:41]} 6. Be2 {[%clk 0:02:55]}  Qb6 {[%clk 0:02:39]} 7. d5 {[%clk 0:02:43]}  Bxc3+ {[%clk 0:02:24]} 8. bxc3 {[%clk 0:02:43]}  Nf6 {[%clk 0:02:24]} 9. Qc2 {[%clk 0:02:34]}  Nbd7 {[%clk 0:02:18]} 10. O-O {[%clk 0:02:29]}  Rc8 {[%clk 0:02:13]} 11. Be3 {[%clk 0:02:27]}  Qa5 {[%clk 0:02:07]} 12. Bd4 {[%clk 0:02:19]}  Bxf3 {[%clk 0:01:20]} 13. Bxf3 {[%clk 0:02:19]}  Ne5 {[%clk 0:01:19]} 14. Be2 {[%clk 0:02:15]}  cxd5 {[%clk 0:01:09]} 15. cxd5 {[%clk 0:02:15]}  O-O {[%clk 0:01:07]} 16. f4 {[%clk 0:02:05]}  Nc4 {[%clk 0:01:05]} 17. Rad1 {[%clk 0:01:52]}  b5 {[%clk 0:01:00]} 18. Bf3 {[%clk 0:01:47]}  e5 {[%clk 0:00:46]} 19. dxe6 {[%clk 0:01:44]}  fxe6 {[%clk 0:00:47]} 20. e5 {[%clk 0:01:37]}  dxe5 {[%clk 0:00:47]} 21. fxe5 {[%clk 0:01:38]}  Nd5 {[%clk 0:00:48]} 22. Bg4 {[%clk 0:01:35]}  Qa6 {[%clk 0:00:36]} 23. Qd3 {[%clk 0:01:29]}  Nb2 {[%clk 0:00:34]} 24. Qh3 {[%clk 0:01:29]}  Nxd1 {[%clk 0:00:11]} 25. Bxe6+ {[%clk 0:01:29]}  Kg7 {[%clk 0:00:11]} 26. Bxd5 {[%clk 0:01:13]}  Rxf1+ {[%clk 0:00:08]} 27. Kxf1 {[%clk 0:01:14]}  b4+ {[%clk 0:00:07]} 28. Ke1 {[%clk 0:01:04]}  Rf8 {[%clk 0:00:00]} 29. e6+ {[%clk 0:01:03]} 1-0

[Event "December 19 Early 2023"]
[Site "https://www.chess.com"]
[Date "2023.12.19"]
[Round "1"]
[White "Rushbrooke, Remy"]
[Black "Tokhirjonova, Gulrukhbegim"]
[Result "0-1"]
[Board "170"]
[TimeControl "180+1"]
[WhiteFideId "443590"]
[BlackFideId "14203626"]
[WhiteElo "1942"]
[BlackElo "2265"]
[WhiteTeam "ENG"]
[BlackTeam "USA"]
[WhiteClock "0:01:30"]
[BlackClock "0:00:19"]

1. Nf3 {[%clk 0:03:00]}  d5 {[%clk 0:02:59]} 2. g3 {[%clk 0:03:01]}  c6 {[%clk 0:02:59]} 3. Bg2 {[%clk 0:03:01]}  Nf6 {[%clk 0:02:59]} 4. c4 {[%clk 0:03:01]}  g6 {[%clk 0:02:59]} 5. O-O {[%clk 0:02:59]}  dxc4 {[%clk 0:02:59]} 6. Ne5 {[%clk 0:02:53]}  Be6 {[%clk 0:02:56]} 7. Na3 {[%clk 0:02:53]}  Bg7 {[%clk 0:02:52]} 8. Naxc4 {[%clk 0:02:49]}  O-O {[%clk 0:02:52]} 9. d4 {[%clk 0:02:47]}  Nbd7 {[%clk 0:02:52]} 10. Nxd7 {[%clk 0:02:41]}  Nxd7 {[%clk 0:02:45]} 11. b3 {[%clk 0:02:41]}  Bxc4 {[%clk 0:02:40]} 12. bxc4 {[%clk 0:02:42]}  Nb6 {[%clk 0:02:40]} 13. c5 {[%clk 0:02:38]}  Bxd4 {[%clk 0:02:33]} 14. Bh6 {[%clk 0:02:38]}  Bxc5 {[%clk 0:01:54]} 15. Bxf8 {[%clk 0:02:36]}  Qxf8 {[%clk 0:01:53]} 16. a4 {[%clk 0:02:33]}  Rd8 {[%clk 0:01:52]} 17. Qc2 {[%clk 0:02:32]}  e5 {[%clk 0:01:48]} 18. e3 {[%clk 0:02:32]}  Nd5 {[%clk 0:01:47]} 19. Rfb1 {[%clk 0:02:31]}  b6 {[%clk 0:01:45]} 20. a5 {[%clk 0:02:30]}  Nb4 {[%clk 0:01:45]} 21. Qc4 {[%clk 0:02:25]}  b5 {[%clk 0:01:28]} 22. Qc3 {[%clk 0:02:25]}  Qe7 {[%clk 0:01:22]} 23. Rc1 {[%clk 0:02:25]}  Nd3 {[%clk 0:01:15]} 24. Rd1 {[%clk 0:02:25]}  e4 {[%clk 0:01:10]} 25. Bf1 {[%clk 0:02:23]}  Bb4 {[%clk 0:00:47]} 26. Qb3 {[%clk 0:02:21]}  c5 {[%clk 0:00:39]} 27. Bxd3 {[%clk 0:02:08]}  exd3 {[%clk 0:00:40]} 28. Rxd3 {[%clk 0:02:06]}  Rxd3 {[%clk 0:00:38]} 29. Qxd3 {[%clk 0:02:07]}  c4 {[%clk 0:00:38]} 30. Qd5 {[%clk 0:02:04]}  a6 {[%clk 0:00:37]} 31. Rd1 {[%clk 0:01:58]}  c3 {[%clk 0:00:34]} 32. Qd8+ {[%clk 0:01:55]}  Qxd8 {[%clk 0:00:31]} 33. Rxd8+ {[%clk 0:01:55]}  Kg7 {[%clk 0:00:32]} 34. Rc8 {[%clk 0:01:55]}  Bxa5 {[%clk 0:00:31]} 35. Kf1 {[%clk 0:01:55]}  b4 {[%clk 0:00:32]} 36. Ke2 {[%clk 0:01:55]}  b3 {[%clk 0:00:32]} 37. Kd1 {[%clk 0:01:52]}  c2+ {[%clk 0:00:28]} 38. Kc1 {[%clk 0:01:53]}  Bb4 {[%clk 0:00:25]} 39. Kb2 {[%clk 0:01:53]}  Bd2 {[%clk 0:00:24]} 40. e4 {[%clk 0:01:41]}  a5 {[%clk 0:00:23]} 41. Rxc2 {[%clk 0:01:38]}  bxc2 {[%clk 0:00:18]} 42. Kxc2 {[%clk 0:01:38]}  Bb4 {[%clk 0:00:18]} 43. Kb3 {[%clk 0:01:39]}  Kf6 {[%clk 0:00:18]} 44. f3 {[%clk 0:01:38]}  g5 {[%clk 0:00:18]} 45. h3 {[%clk 0:01:38]}  h5 {[%clk 0:00:19]} 46. f4 {[%clk 0:01:37]}  gxf4 {[%clk 0:00:19]} 47. gxf4 {[%clk 0:01:37]}  Bd2 {[%clk 0:00:20]} 48. f5 {[%clk 0:01:30]}  Ke5 {[%clk 0:00:19]} 0-1

[Event "December 19 Early 2023"]
[Site "https://www.chess.com"]
[Date "2023.12.19"]
[Round "1"]
[White "Lund, Gunnar"]
[Black "Marinakis, Hristos"]
[Result "1-0"]
[Board "173"]
[TimeControl "180+1"]
[WhiteFideId "1520814"]
[BlackFideId "4294661"]
[WhiteElo "2233"]
[BlackElo "2297"]
[WhiteTeam "NOR"]
[BlackTeam "GRE"]
[WhiteClock "0:00:17"]
[BlackClock "0:00:05"]

1. d4 {[%clk 0:02:56]}  Nf6 {[%clk 0:02:58]} 2. c4 {[%clk 0:02:50]}  e6 {[%clk 0:02:55]} 3. g3 {[%clk 0:02:49]}  c5 {[%clk 0:02:55]} 4. d5 {[%clk 0:02:48]}  exd5 {[%clk 0:02:55]} 5. cxd5 {[%clk 0:02:49]}  d6 {[%clk 0:02:55]} 6. Bg2 {[%clk 0:02:43]}  g6 {[%clk 0:02:54]} 7. Nc3 {[%clk 0:02:43]}  Bg7 {[%clk 0:02:55]} 8. Nf3 {[%clk 0:02:42]}  O-O {[%clk 0:02:55]} 9. O-O {[%clk 0:02:39]}  Re8 {[%clk 0:02:48]} 10. Re1 {[%clk 0:02:39]}  a6 {[%clk 0:02:47]} 11. a4 {[%clk 0:02:39]}  Ne4 {[%clk 0:02:41]} 12. Nxe4 {[%clk 0:02:37]}  Rxe4 {[%clk 0:02:42]} 13. Nd2 {[%clk 0:02:37]}  Rb4 {[%clk 0:02:35]} 14. Qc2 {[%clk 0:02:31]}  Nd7 {[%clk 0:02:21]} 15. e4 {[%clk 0:01:47]}  Ne5 {[%clk 0:02:04]} 16. h3 {[%clk 0:01:45]}  g5 {[%clk 0:01:52]} 17. Nf1 {[%clk 0:01:35]}  Qf6 {[%clk 0:01:01]} 18. Kh1 {[%clk 0:00:54]}  g4 {[%clk 0:00:47]} 19. hxg4 {[%clk 0:00:51]}  Bxg4 {[%clk 0:00:42]} 20. Bd2 {[%clk 0:00:46]}  Rc4 {[%clk 0:00:26]} 21. Bc3 {[%clk 0:00:46]}  Qg6 {[%clk 0:00:18]} 22. Nh2 {[%clk 0:00:45]}  Qh5 {[%clk 0:00:14]} 23. Kg1 {[%clk 0:00:45]}  Bh3 {[%clk 0:00:13]} 24. Qd1 {[%clk 0:00:45]}  Bg4 {[%clk 0:00:09]} 25. Qd2 {[%clk 0:00:40]}  Nf3+ {[%clk 0:00:06]} 26. Nxf3 {[%clk 0:00:37]}  Bxf3 {[%clk 0:00:07]} 27. Bxg7 {[%clk 0:00:36]}  Kxg7 {[%clk 0:00:05]} 28. Qf4 {[%clk 0:00:36]}  Bxg2 {[%clk 0:00:05]} 29. Kxg2 {[%clk 0:00:37]}  Qe5 {[%clk 0:00:04]} 30. Qg4+ {[%clk 0:00:35]}  Kh8 {[%clk 0:00:05]} 31. b3 {[%clk 0:00:35]}  Rd4 {[%clk 0:00:05]} 32. Rad1 {[%clk 0:00:32]}  Rg8 {[%clk 0:00:05]} 33. Qf3 {[%clk 0:00:33]}  Rxd1 {[%clk 0:00:04]} 34. Rxd1 {[%clk 0:00:34]}  Re8 {[%clk 0:00:04]} 35. Qxf7 {[%clk 0:00:20]}  Qxe4+ {[%clk 0:00:04]} 36. Kg1 {[%clk 0:00:21]}  Qe7 {[%clk 0:00:04]} 37. Qf4 {[%clk 0:00:19]}  Qe5 {[%clk 0:00:03]} 38. Qf7 {[%clk 0:00:19]}  Qe7 {[%clk 0:00:04]} 39. Qh5 {[%clk 0:00:20]}  Qe5 {[%clk 0:00:04]} 40. Qh6 {[%clk 0:00:18]}  Qe7 {[%clk 0:00:03]} 41. Kh2 {[%clk 0:00:14]}  Rf8 {[%clk 0:00:03]} 42. Rf1 {[%clk 0:00:14]}  Qf6 {[%clk 0:00:03]} 43. Qe3 {[%clk 0:00:14]}  Qe5 {[%clk 0:00:03]} 44. Qxe5+ {[%clk 0:00:14]}  dxe5 {[%clk 0:00:04]} 45. Re1 {[%clk 0:00:15]}  Re8 {[%clk 0:00:03]} 46. Kg2 {[%clk 0:00:15]}  Kg7 {[%clk 0:00:03]} 47. Kf3 {[%clk 0:00:15]}  Kf6 {[%clk 0:00:04]} 48. Ke4 {[%clk 0:00:16]}  Rg8 {[%clk 0:00:04]} 49. Rh1 {[%clk 0:00:15]}  Rg4+ {[%clk 0:00:04]} 50. f4 {[%clk 0:00:15]}  exf4 {[%clk 0:00:03]} 51. gxf4 {[%clk 0:00:16]}  Kg7 {[%clk 0:00:03]} 52. d6 {[%clk 0:00:16]}  Rg2 {[%clk 0:00:04]} 53. Rd1 {[%clk 0:00:16]}  Re2+ {[%clk 0:00:04]} 54. Kf3 {[%clk 0:00:16]}  Re8 {[%clk 0:00:05]} 55. Kg4 {[%clk 0:00:15]}  Rd8 {[%clk 0:00:05]} 56. Kf5 {[%clk 0:00:15]}  Kf7 {[%clk 0:00:06]} 57. Ke5 {[%clk 0:00:16]}  Ke8 {[%clk 0:00:06]} 58. Ke6 {[%clk 0:00:16]}  Rd7 {[%clk 0:00:06]} 59. Rg1 {[%clk 0:00:16]}  Rf7 {[%clk 0:00:06]} 60. Rg8+ {[%clk 0:00:16]}  Rf8 {[%clk 0:00:05]} 61. d7+ {[%clk 0:00:17]} 1-0

[Event "December 19 Early 2023"]
[Site "https://www.chess.com"]
[Date "2023.12.19"]
[Round "1"]
[White "Ezat, Mohamed"]
[Black "Martin, Lewis"]
[Result "1-0"]
[Board "175"]
[TimeControl "180+1"]
[WhiteFideId "10600906"]
[BlackFideId "410551"]
[WhiteElo "2367"]
[BlackElo "2145"]
[WhiteTeam "EGY"]
[BlackTeam "ENG"]
[WhiteClock "0:01:02"]
[BlackClock "0:00:05"]

1. d4 {[%clk 0:02:57]}  d5 {[%clk 0:02:58]} 2. c4 {[%clk 0:02:53]}  c6 {[%clk 0:02:58]} 3. Nc3 {[%clk 0:02:53]}  e6 {[%clk 0:02:56]} 4. e4 {[%clk 0:02:51]}  dxe4 {[%clk 0:02:46]} 5. Nxe4 {[%clk 0:02:52]}  Nf6 {[%clk 0:02:40]} 6. Nxf6+ {[%clk 0:02:48]}  Qxf6 {[%clk 0:02:40]} 7. Nf3 {[%clk 0:02:48]}  Nd7 {[%clk 0:02:30]} 8. Bd3 {[%clk 0:02:45]}  Bb4+ {[%clk 0:02:28]} 9. Bd2 {[%clk 0:02:41]}  Bxd2+ {[%clk 0:02:27]} 10. Qxd2 {[%clk 0:02:41]}  O-O {[%clk 0:02:23]} 11. O-O {[%clk 0:02:36]}  e5 {[%clk 0:02:14]} 12. Ng5 {[%clk 0:02:30]}  exd4 {[%clk 0:01:50]} 13. Nxh7 {[%clk 0:02:26]}  Qd6 {[%clk 0:01:40]} 14. Nxf8 {[%clk 0:02:25]}  Nxf8 {[%clk 0:01:40]} 15. Rae1 {[%clk 0:02:21]}  Be6 {[%clk 0:01:35]} 16. Qg5 {[%clk 0:02:14]}  Re8 {[%clk 0:01:28]} 17. c5 {[%clk 0:02:10]}  Qe7 {[%clk 0:01:19]} 18. Qxe7 {[%clk 0:02:04]}  Rxe7 {[%clk 0:01:20]} 19. f4 {[%clk 0:02:04]}  Rd7 {[%clk 0:01:04]} 20. b3 {[%clk 0:02:03]}  Bd5 {[%clk 0:01:01]} 21. f5 {[%clk 0:02:03]}  f6 {[%clk 0:00:56]} 22. Re8 {[%clk 0:01:59]}  Kf7 {[%clk 0:00:53]} 23. Rfe1 {[%clk 0:01:56]}  b6 {[%clk 0:00:39]} 24. Rb8 {[%clk 0:01:30]}  g5 {[%clk 0:00:22]} 25. Ree8 {[%clk 0:01:28]}  Nh7 {[%clk 0:00:18]} 26. Rh8 {[%clk 0:01:24]}  Kg7 {[%clk 0:00:18]} 27. Rhd8 {[%clk 0:01:17]}  Re7 {[%clk 0:00:16]} 28. cxb6 {[%clk 0:01:15]}  axb6 {[%clk 0:00:17]} 29. Rxb6 {[%clk 0:01:15]}  g4 {[%clk 0:00:15]} 30. Rdb8 {[%clk 0:01:11]}  Kh6 {[%clk 0:00:14]} 31. R6b7 {[%clk 0:01:11]}  Re1+ {[%clk 0:00:14]} 32. Kf2 {[%clk 0:01:10]}  Ra1 {[%clk 0:00:14]} 33. Rh8 {[%clk 0:01:09]}  Rxa2+ {[%clk 0:00:14]} 34. Kg3 {[%clk 0:01:09]}  Rxg2+ {[%clk 0:00:14]} 35. Kf4 {[%clk 0:01:07]}  Rf2+ {[%clk 0:00:13]} 36. Kxg4 {[%clk 0:01:07]}  Rg2+ {[%clk 0:00:11]} 37. Kh3 {[%clk 0:01:03]}  Kg5 {[%clk 0:00:10]} 38. Rg7+ {[%clk 0:01:01]}  Kf4 {[%clk 0:00:05]} 39. Rxg2 {[%clk 0:01:02]} 1-0